Workbook

Sheet 401k Calculator
B2: 401(k) Calculator
C5: Current Annual Income | H5: 40,000 | M5: Employer Match | R5: 50.00 | U5: % | AC5: Contribution
C6: Exp'd Annual Salary Increase | H6: 3.00 | K6: % | M6: up to | O6: 6.00 | R6: % of salary | AC6: Your | AF6: Employer | AI6: Total
Z7: Up to now | AC7: =H9 -> 0 | AF7: =H10 -> 0 | AI7: =SUM(AC7:AH7) -> 0
C8: Current Balance | H8: =EmployerInitialCont+YourInitialCont -> 0 | M8: Current Age | R8: 25 | Z8: =" Coming "&(RetirementAge-CurrentAge)&" yrs" -> Coming 15 yrs | AC8: =SUM(K17:M76) -> 44,637 | AF8: =SUM(N17:P76) -> 22,319 | AI8: =SUM(AC8:AH8) -> 66,956
C9: Your Contr. up to now | H9: 0.00 | M9: Retirement Age | R9: 40 | Z9: Final | AC9: =AC7+AC8 -> 44,637 | AF9: =AF7+AF8 -> 22,319 | AI9: =SUM(AC9:AH9) -> 66,956
C10: Employer's Contr. up to now | H10: 0.00 | M10: Avg. Annual Interest Rate | R10: 7.00 | U10: % | Z10: Interest Earnings | AC10: =SUM(Q17:S76) -> 41,140
C11: Withheld Salary for 401k | H11: 6.00 | K11: % | M11: Payments per Year | R11: 1 | Z11: Final Balance | AC11: =AC10+AI9 -> 108,096
C15: Year | E15: Beginning Balance | H15: Salary | K15: Your Contributions | N15: Employer 's Contributions | Q15: Interest Earnings | T15: Ending Balance | Z15: Cumulative Contributions to Balance
A17: 1 | C17: =IF(RetirementAge-CurrentAge>=A17,A17,"") -> 1 | E17: =IF(C17="","",InitialBalance) -> 0.00 | H17: =IF(C17="","",InitialIncome*POWER((1+IncomeIncreaseRate/100),C17-1)) -> 40,000.00 | K17: =IF(C17="","",H17*WithheldRate/100) -> 2,400.00 | N17: =IF(C17="","",H17*EmployerMatchRate/100*MIN(WithheldRate,EmployerMatchUpTo)/100) -> 1,200.00 | Q17: =IF(C17="","",-FV(InterestRate/100/PaymentsPerYear,PaymentsPerYear,H17+K17,E17)-(H17+K17+E17)) -> 0.00 | T17: =IF(C17="","",E17+K17+N17+Q17) -> 3,600.00
A18: 2 | C18: 2 | E18: =IF(C18="","",T17) -> 3,600.00 | H18: 41,200.00 | K18: 2,472.00 | N18: 1,236.00 | Q18: 252.00 | T18: =IF(C18="","",E18+K18+N18+Q18) -> 7,560.00
A19: 3 | C19: 3 | E19: =IF(C19="","",T18) -> 7,560.00 | H19: 42,436.00 | K19: 2,546.16 | N19: 1,273.08 | Q19: 529.20 | T19: =IF(C19="","",E19+K19+N19+Q19) -> 11,908.44
A20: 4 | C20: 4 | E20: 11,908.44 | H20: 43,709.08 | K20: 2,622.54 | N20: 1,311.27 | Q20: 833.59 | T20: 16,675.85
A21: 5 | C21: 5 | E21: 16,675.85 | H21: 45,020.35 | K21: 2,701.22 | N21: 1,350.61 | Q21: 1,167.31 | T21: 21,894.99
A22: 6 | C22: 6 | E22: 21,894.99 | H22: 46,370.96 | K22: 2,782.26 | N22: 1,391.13 | Q22: 1,532.65 | T22: 27,601.02
A23: 7 | C23: 7 | E23: 27,601.02 | H23: 47,762.09 | K23: 2,865.73 | N23: 1,432.86 | Q23: 1,932.07 | T23: 33,831.68
A24: 8 | C24: 8 | E24: 33,831.68 | H24: 49,194.95 | K24: 2,951.70 | N24: 1,475.85 | Q24: 2,368.22 | T24: 40,627.45
A25: 9 | C25: 9 | E25: 40,627.45 | H25: 50,670.80 | K25: 3,040.25 | N25: 1,520.12 | Q25: 2,843.92 | T25: 48,031.74
A26: 10 | C26: 10 | E26: 48,031.74 | H26: 52,190.93 | K26: 3,131.46 | N26: 1,565.73 | Q26: 3,362.22 | T26: 56,091.15
A27: 11 | C27: 11 | E27: 56,091.15 | H27: 53,756.66 | K27: 3,225.40 | N27: 1,612.70 | Q27: 3,926.38 | T27: 64,855.63
A28: 12 | C28: 12 | E28: 64,855.63 | H28: 55,369.35 | K28: 3,322.16 | N28: 1,661.08 | Q28: 4,539.89 | T28: 74,378.76
A29: 13 | C29: 13 | E29: 74,378.76 | H29: 57,030.44 | K29: 3,421.83 | N29: 1,710.91 | Q29: 5,206.51 | T29: 84,718.02
A30: 14 | C30: 14 | E30: 84,718.02 | H30: 58,741.35 | K30: 3,524.48 | N30: 1,762.24 | Q30: 5,930.26 | T30: 95,935.00
A31: 15 | C31: 15 | E31: 95,935.00 | H31: 60,503.59 | K31: 3,630.22 | N31: 1,815.11 | Q31: 6,715.45 | T31: 108,095.77
A32: 16 | Z32: Balance Distribution
A33: 17
A34: 18
A35: 19
A36: 20
A37: 21
A38: 22
A39: 23
A40: 24
A41: 25
A42: 26
A43: 27
A44: 28
A45: 29
A46: 30
A47: 31
A48: 32 | Z48: Yearly Balance Growth
A49: 33 | C49: =IF(RetirementAge-CurrentAge>=A49,A49,"") ->  | H49: =IF(C49="","",InitialIncome*POWER((1+IncomeIncreaseRate/100),C49-1)) ->  | K49: =IF(C49="","",H49*WithheldRate/100) ->  | N49: =IF(C49="","",H49*EmployerMatchRate/100*MIN(WithheldRate,EmployerMatchUpTo)/100) ->  | Q49: =IF(C49="","",-FV(InterestRate/100/PaymentsPerYear,PaymentsPerYear,H49+K49,E49)-(H49+K49+E49)) -> 
A50: 34
A51: 35
A52: 36
A53: 37
A54: 38
A55: 39
A56: 40
A57: 41
A58: 42
A59: 43
A60: 44
A61: 45
A62: 46
A63: 47
A64: 48
A65: 49
A66: 50
A67: 51
A68: 52
A69: 53
A70: 54
A71: 55
A72: 56
A73: 57
A74: 58
A75: 59
A76: 60

Sheet Calculations
D2: Your | E2: Employer | F2: Interest | G2: Total | I2: =RetirementAge-CurrentAge -> 15 | K2: Your | L2: Employer's | M2: Interest | O2: Total
C3: ='401k Calculator'!C17:D17 -> 1 | D3: =IF(C3="",0,'401k Calculator'!K17) -> 2,400.00 | E3: =IF(C3="",0,'401k Calculator'!N17) -> 1,200.00 | F3: =IF(C3="",0,'401k Calculator'!Q17) -> 0.00 | G3: =IF(C3="",0,F3+E3+D3) -> 3600 | I3: 0 | J3: =C3 -> 1 | K3: =D3 -> 2,400 | L3: =E3 -> 1,200 | M3: =F3 -> 0.00 | N3: =C3 -> 1 | O3: =G3 -> 3600
C4: ='401k Calculator'!C18:D18 -> 2 | D4: =IF(C4="",0,SUM('401k Calculator'!K$17:K18)) -> 4,872.00 | E4: =IF(C4="",0,SUM('401k Calculator'!N$17:N18)) -> 2,436.00 | F4: =IF(C4="",0,SUM('401k Calculator'!O$17:Q18)) -> 252.00 | G4: =IF(C4="",0,F4+E4+D4) -> 7560 | I4: 2 | J4: =IF(I$2<10,C4,VLOOKUP((RetirementAge-CurrentAge)/10*I4,CumList,1,TRUE)) -> 3 | K4: =VLOOKUP($J4,CumList,2,FALSE) -> 7,418 | L4: =VLOOKUP($J4,CumList,3,FALSE) -> 3,709 | M4: =VLOOKUP($J4,CumList,4,FALSE) -> 781 | N4: =IF(I$2<10,C4,VLOOKUP((RetirementAge-CurrentAge)/10*I4,CumList,1,TRUE)) -> 3 | O4: =IF(J4="","",VLOOKUP($J4,CumList,5,FALSE)) -> 11,908
C5: ='401k Calculator'!C19:D19 -> 3 | D5: =IF(C5="",0,SUM('401k Calculator'!K$17:K19)) -> 7,418.16 | E5: =IF(C5="",0,SUM('401k Calculator'!N$17:N19)) -> 3,709.08 | F5: =IF(C5="",0,SUM('401k Calculator'!O$17:Q19)) -> 781.20 | G5: 11908.44 | I5: 3 | J5: 4 | K5: 10,041 | L5: 5,020 | M5: 1,615 | N5: 4 | O5: 16,676
C6: ='401k Calculator'!C20:D20 -> 4 | D6: =IF(C6="",0,SUM('401k Calculator'!K$17:K20)) -> 10,040.70 | E6: =IF(C6="",0,SUM('401k Calculator'!N$17:N20)) -> 5,020.35 | F6: =IF(C6="",0,SUM('401k Calculator'!O$17:Q20)) -> 1,614.79 | G6: 16675.848 | I6: 4 | J6: 6 | K6: 15,524 | L6: 7,762 | M6: 4,315 | N6: 6 | O6: 27,601
C7: ='401k Calculator'!C21:D21 -> 5 | D7: =IF(C7="",0,SUM('401k Calculator'!K$17:K21)) -> 12,741.93 | E7: =IF(C7="",0,SUM('401k Calculator'!N$17:N21)) -> 6,370.96 | F7: =IF(C7="",0,SUM('401k Calculator'!O$17:Q21)) -> 2,782.10 | G7: 21894.98908 | I7: 5 | J7: 7 | K7: 18,390 | L7: 9,195 | M7: 6,247 | N7: 7 | O7: 33,832
C8: ='401k Calculator'!C22:D22 -> 6 | D8: =IF(C8="",0,SUM('401k Calculator'!K$17:K22)) -> 15,524.18 | E8: =IF(C8="",0,SUM('401k Calculator'!N$17:N22)) -> 7,762.09 | F8: =IF(C8="",0,SUM('401k Calculator'!O$17:Q22)) -> 4,314.75 | G8: 27601.02498 | I8: 6 | J8: 9 | K8: 24,382 | L8: 12,191 | M8: 11,459 | N8: 9 | O8: 48,032
C9: ='401k Calculator'!C23:D23 -> 7 | D9: =IF(C9="",0,SUM('401k Calculator'!K$17:K23)) -> 18,389.91 | E9: =IF(C9="",0,SUM('401k Calculator'!N$17:N23)) -> 9,194.95 | F9: =IF(C9="",0,SUM('401k Calculator'!O$17:Q23)) -> 6,246.82 | G9: 33831.68499 | I9: 7 | J9: 10 | K9: 27,513 | L9: 13,757 | M9: 14,821 | N9: 10 | O9: 56,091
C10: ='401k Calculator'!C24:D24 -> 8 | D10: =IF(C10="",0,SUM('401k Calculator'!K$17:K24)) -> 21,341.61 | E10: =IF(C10="",0,SUM('401k Calculator'!N$17:N24)) -> 10,670.80 | F10: =IF(C10="",0,SUM('401k Calculator'!O$17:Q24)) -> 8,615.04 | G10: 40627.44886 | I10: 8 | J10: 12 | K10: 34,061 | L10: 17,030 | M10: 23,287 | N10: 12 | O10: 74,379
C11: ='401k Calculator'!C25:D25 -> 9 | D11: =IF(C11="",0,SUM('401k Calculator'!K$17:K25)) -> 24,381.85 | E11: =IF(C11="",0,SUM('401k Calculator'!N$17:N25)) -> 12,190.93 | F11: =IF(C11="",0,SUM('401k Calculator'!O$17:Q25)) -> 11,458.96 | G11: 48031.74257 | I11: 9 | J11: 13 | K11: 37,483 | L11: 18,741 | M11: 28,494 | N11: 13 | O11: 84,718
C12: ='401k Calculator'!C26:D26 -> 10 | D12: =IF(C12="",0,SUM('401k Calculator'!K$17:K26)) -> 27,513.31 | E12: =IF(C12="",0,SUM('401k Calculator'!N$17:N26)) -> 13,756.66 | F12: =IF(C12="",0,SUM('401k Calculator'!O$17:Q26)) -> 14,821.18 | G12: 56091.14802 | I12: 10 | J12: 15 | K12: 44,637 | L12: 22,319 | M12: 41,140 | N12: 15 | O12: 108,096
C13: ='401k Calculator'!C27:D27 -> 11 | D13: =IF(C13="",0,SUM('401k Calculator'!K$17:K27)) -> 30,738.71 | E13: =IF(C13="",0,SUM('401k Calculator'!N$17:N27)) -> 15,369.35 | F13: =IF(C13="",0,SUM('401k Calculator'!O$17:Q27)) -> 18,747.56 | G13: 64855.62734
C14: ='401k Calculator'!C28:D28 -> 12 | D14: =IF(C14="",0,SUM('401k Calculator'!K$17:K28)) -> 34,060.87 | E14: =IF(C14="",0,SUM('401k Calculator'!N$17:N28)) -> 17,030.44 | F14: =IF(C14="",0,SUM('401k Calculator'!O$17:Q28)) -> 23,287.46 | G14: 74378.76319
C15: ='401k Calculator'!C29:D29 -> 13 | D15: =IF(C15="",0,SUM('401k Calculator'!K$17:K29)) -> 37,482.70 | E15: =IF(C15="",0,SUM('401k Calculator'!N$17:N29)) -> 18,741.35 | F15: =IF(C15="",0,SUM('401k Calculator'!O$17:Q29)) -> 28,493.97 | G15: 84718.01581 | K15: Your | L15: ='401k Calculator'!$AC$9 -> 44,637
C16: ='401k Calculator'!C30:D30 -> 14 | D16: =IF(C16="",0,SUM('401k Calculator'!K$17:K30)) -> 41,007.18 | E16: =IF(C16="",0,SUM('401k Calculator'!N$17:N30)) -> 20,503.59 | F16: =IF(C16="",0,SUM('401k Calculator'!O$17:Q30)) -> 34,424.23 | G16: 95934.99828 | K16: Employer's | L16: ='401k Calculator'!AF9 -> 22,319
C17: ='401k Calculator'!C31:D31 -> 15 | D17: =IF(C17="",0,SUM('401k Calculator'!K$17:K31)) -> 44,637.39 | E17: =IF(C17="",0,SUM('401k Calculator'!N$17:N31)) -> 22,318.70 | F17: =IF(C17="",0,SUM('401k Calculator'!O$17:Q31)) -> 41,139.68 | G17: 108095.7712 | K17: Interest | L17: ='401k Calculator'!$AC$10 -> 41,140
C18: ='401k Calculator'!C32:D32 ->  | D18: =IF(C18="",0,SUM('401k Calculator'!K$17:K32)) -> 0.00 | E18: =IF(C18="",0,SUM('401k Calculator'!N$17:N32)) -> 0.00 | F18: =IF(C18="",0,SUM('401k Calculator'!O$17:Q32)) -> 0.00 | G18: 0
C19: ='401k Calculator'!C33:D33 ->  | D19: =IF(C19="",0,SUM('401k Calculator'!K$17:K33)) -> 0.00 | E19: =IF(C19="",0,SUM('401k Calculator'!N$17:N33)) -> 0.00 | F19: =IF(C19="",0,SUM('401k Calculator'!O$17:Q33)) -> 0.00 | G19: 0
C20: ='401k Calculator'!C34:D34 ->  | D20: =IF(C20="",0,SUM('401k Calculator'!K$17:K34)) -> 0.00 | E20: =IF(C20="",0,SUM('401k Calculator'!N$17:N34)) -> 0.00 | F20: =IF(C20="",0,SUM('401k Calculator'!O$17:Q34)) -> 0.00 | G20: 0
C21: ='401k Calculator'!C35:D35 ->  | D21: =IF(C21="",0,SUM('401k Calculator'!K$17:K35)) -> 0.00 | E21: =IF(C21="",0,SUM('401k Calculator'!N$17:N35)) -> 0.00 | F21: =IF(C21="",0,SUM('401k Calculator'!O$17:Q35)) -> 0.00 | G21: 0
C22: ='401k Calculator'!C36:D36 ->  | D22: =IF(C22="",0,SUM('401k Calculator'!K$17:K36)) -> 0.00 | E22: =IF(C22="",0,SUM('401k Calculator'!N$17:N36)) -> 0.00 | F22: =IF(C22="",0,SUM('401k Calculator'!O$17:Q36)) -> 0.00 | G22: 0
C23: ='401k Calculator'!C37:D37 ->  | D23: =IF(C23="",0,SUM('401k Calculator'!K$17:K37)) -> 0.00 | E23: =IF(C23="",0,SUM('401k Calculator'!N$17:N37)) -> 0.00 | F23: =IF(C23="",0,SUM('401k Calculator'!O$17:Q37)) -> 0.00 | G23: 0
C24: ='401k Calculator'!C38:D38 ->  | D24: =IF(C24="",0,SUM('401k Calculator'!K$17:K38)) -> 0.00 | E24: =IF(C24="",0,SUM('401k Calculator'!N$17:N38)) -> 0.00 | F24: =IF(C24="",0,SUM('401k Calculator'!O$17:Q38)) -> 0.00 | G24: 0
C25: ='401k Calculator'!C39:D39 ->  | D25: =IF(C25="",0,SUM('401k Calculator'!K$17:K39)) -> 0.00 | E25: =IF(C25="",0,SUM('401k Calculator'!N$17:N39)) -> 0.00 | F25: =IF(C25="",0,SUM('401k Calculator'!O$17:Q39)) -> 0.00 | G25: 0
C26: ='401k Calculator'!C40:D40 ->  | D26: =IF(C26="",0,SUM('401k Calculator'!K$17:K40)) -> 0.00 | E26: =IF(C26="",0,SUM('401k Calculator'!N$17:N40)) -> 0.00 | F26: =IF(C26="",0,SUM('401k Calculator'!O$17:Q40)) -> 0.00 | G26: 0
C27: ='401k Calculator'!C41:D41 ->  | D27: =IF(C27="",0,SUM('401k Calculator'!K$17:K41)) -> 0.00 | E27: =IF(C27="",0,SUM('401k Calculator'!N$17:N41)) -> 0.00 | F27: =IF(C27="",0,SUM('401k Calculator'!O$17:Q41)) -> 0.00 | G27: 0
C28: ='401k Calculator'!C42:D42 ->  | D28: =IF(C28="",0,SUM('401k Calculator'!K$17:K42)) -> 0.00 | E28: =IF(C28="",0,SUM('401k Calculator'!N$17:N42)) -> 0.00 | F28: =IF(C28="",0,SUM('401k Calculator'!O$17:Q42)) -> 0.00 | G28: 0
C29: ='401k Calculator'!C43:D43 ->  | D29: =IF(C29="",0,SUM('401k Calculator'!K$17:K43)) -> 0.00 | E29: =IF(C29="",0,SUM('401k Calculator'!N$17:N43)) -> 0.00 | F29: =IF(C29="",0,SUM('401k Calculator'!O$17:Q43)) -> 0.00 | G29: 0
C30: ='401k Calculator'!C44:D44 ->  | D30: =IF(C30="",0,SUM('401k Calculator'!K$17:K44)) -> 0.00 | E30: =IF(C30="",0,SUM('401k Calculator'!N$17:N44)) -> 0.00 | F30: =IF(C30="",0,SUM('401k Calculator'!O$17:Q44)) -> 0.00 | G30: 0
C31: ='401k Calculator'!C45:D45 ->  | D31: =IF(C31="",0,SUM('401k Calculator'!K$17:K45)) -> 0.00 | E31: =IF(C31="",0,SUM('401k Calculator'!N$17:N45)) -> 0.00 | F31: =IF(C31="",0,SUM('401k Calculator'!O$17:Q45)) -> 0.00 | G31: 0
C32: ='401k Calculator'!C46:D46 ->  | D32: =IF(C32="",0,SUM('401k Calculator'!K$17:K46)) -> 0.00 | E32: =IF(C32="",0,SUM('401k Calculator'!N$17:N46)) -> 0.00 | F32: =IF(C32="",0,SUM('401k Calculator'!O$17:Q46)) -> 0.00 | G32: 0
C33: ='401k Calculator'!C47:D47 ->  | D33: =IF(C33="",0,SUM('401k Calculator'!K$17:K47)) -> 0.00 | E33: =IF(C33="",0,SUM('401k Calculator'!N$17:N47)) -> 0.00 | F33: =IF(C33="",0,SUM('401k Calculator'!O$17:Q47)) -> 0.00 | G33: 0
C34: ='401k Calculator'!C48:D48 ->  | D34: =IF(C34="",0,SUM('401k Calculator'!K$17:K48)) -> 0.00 | E34: =IF(C34="",0,SUM('401k Calculator'!N$17:N48)) -> 0.00 | F34: =IF(C34="",0,SUM('401k Calculator'!O$17:Q48)) -> 0.00 | G34: 0
C35: ='401k Calculator'!C49:D49 ->  | D35: =IF(C35="",0,SUM('401k Calculator'!K$17:K49)) -> 0.00 | E35: =IF(C35="",0,SUM('401k Calculator'!N$17:N49)) -> 0.00 | F35: =IF(C35="",0,SUM('401k Calculator'!O$17:Q49)) -> 0.00 | G35: 0
C36: ='401k Calculator'!C50:D50 ->  | D36: =IF(C36="",0,SUM('401k Calculator'!K$17:K50)) -> 0.00 | E36: =IF(C36="",0,SUM('401k Calculator'!N$17:N50)) -> 0.00 | F36: =IF(C36="",0,SUM('401k Calculator'!O$17:Q50)) -> 0.00 | G36: 0
C37: ='401k Calculator'!C51:D51 ->  | D37: =IF(C37="",0,SUM('401k Calculator'!K$17:K51)) -> 0.00 | E37: =IF(C37="",0,SUM('401k Calculator'!N$17:N51)) -> 0.00 | F37: =IF(C37="",0,SUM('401k Calculator'!O$17:Q51)) -> 0.00 | G37: 0
C38: ='401k Calculator'!C52:D52 ->  | D38: =IF(C38="",0,SUM('401k Calculator'!K$17:K52)) -> 0.00 | E38: =IF(C38="",0,SUM('401k Calculator'!N$17:N52)) -> 0.00 | F38: =IF(C38="",0,SUM('401k Calculator'!O$17:Q52)) -> 0.00 | G38: 0
C39: ='401k Calculator'!C53:D53 ->  | D39: =IF(C39="",0,SUM('401k Calculator'!K$17:K53)) -> 0.00 | E39: =IF(C39="",0,SUM('401k Calculator'!N$17:N53)) -> 0.00 | F39: =IF(C39="",0,SUM('401k Calculator'!O$17:Q53)) -> 0.00 | G39: 0
C40: ='401k Calculator'!C54:D54 ->  | D40: =IF(C40="",0,SUM('401k Calculator'!K$17:K54)) -> 0.00 | E40: =IF(C40="",0,SUM('401k Calculator'!N$17:N54)) -> 0.00 | F40: =IF(C40="",0,SUM('401k Calculator'!O$17:Q54)) -> 0.00 | G40: 0
C41: ='401k Calculator'!C55:D55 ->  | D41: =IF(C41="",0,SUM('401k Calculator'!K$17:K55)) -> 0.00 | E41: =IF(C41="",0,SUM('401k Calculator'!N$17:N55)) -> 0.00 | F41: =IF(C41="",0,SUM('401k Calculator'!O$17:Q55)) -> 0.00 | G41: 0
C42: ='401k Calculator'!C56:D56 ->  | D42: =IF(C42="",0,SUM('401k Calculator'!K$17:K56)) -> 0.00 | E42: =IF(C42="",0,SUM('401k Calculator'!N$17:N56)) -> 0.00 | F42: =IF(C42="",0,SUM('401k Calculator'!O$17:Q56)) -> 0.00 | G42: 0
C43: ='401k Calculator'!C57:D57 ->  | D43: =IF(C43="",0,SUM('401k Calculator'!K$17:K57)) -> 0.00 | E43: =IF(C43="",0,SUM('401k Calculator'!N$17:N57)) -> 0.00 | F43: =IF(C43="",0,SUM('401k Calculator'!O$17:Q57)) -> 0.00 | G43: 0
C44: ='401k Calculator'!C58:D58 ->  | D44: =IF(C44="",0,SUM('401k Calculator'!K$17:K58)) -> 0.00 | E44: =IF(C44="",0,SUM('401k Calculator'!N$17:N58)) -> 0.00 | F44: =IF(C44="",0,SUM('401k Calculator'!O$17:Q58)) -> 0.00 | G44: 0
C45: ='401k Calculator'!C59:D59 ->  | D45: =IF(C45="",0,SUM('401k Calculator'!K$17:K59)) -> 0.00 | E45: =IF(C45="",0,SUM('401k Calculator'!N$17:N59)) -> 0.00 | F45: =IF(C45="",0,SUM('401k Calculator'!O$17:Q59)) -> 0.00 | G45: 0
C46: ='401k Calculator'!C60:D60 ->  | D46: =IF(C46="",0,SUM('401k Calculator'!K$17:K60)) -> 0.00 | E46: =IF(C46="",0,SUM('401k Calculator'!N$17:N60)) -> 0.00 | F46: =IF(C46="",0,SUM('401k Calculator'!O$17:Q60)) -> 0.00 | G46: 0
C47: ='401k Calculator'!C61:D61 ->  | D47: =IF(C47="",0,SUM('401k Calculator'!K$17:K61)) -> 0.00 | E47: =IF(C47="",0,SUM('401k Calculator'!N$17:N61)) -> 0.00 | F47: =IF(C47="",0,SUM('401k Calculator'!O$17:Q61)) -> 0.00 | G47: 0
C48: ='401k Calculator'!C62:D62 ->  | D48: =IF(C48="",0,SUM('401k Calculator'!K$17:K62)) -> 0.00 | E48: =IF(C48="",0,SUM('401k Calculator'!N$17:N62)) -> 0.00 | F48: =IF(C48="",0,SUM('401k Calculator'!O$17:Q62)) -> 0.00 | G48: 0
C49: ='401k Calculator'!C63:D63 ->  | D49: =IF(C49="",0,SUM('401k Calculator'!K$17:K63)) -> 0.00 | E49: =IF(C49="",0,SUM('401k Calculator'!N$17:N63)) -> 0.00 | F49: =IF(C49="",0,SUM('401k Calculator'!O$17:Q63)) -> 0.00 | G49: 0
C50: ='401k Calculator'!C64:D64 ->  | D50: =IF(C50="",0,SUM('401k Calculator'!K$17:K64)) -> 0.00 | E50: =IF(C50="",0,SUM('401k Calculator'!N$17:N64)) -> 0.00 | F50: =IF(C50="",0,SUM('401k Calculator'!O$17:Q64)) -> 0.00 | G50: 0
C51: ='401k Calculator'!C65:D65 ->  | D51: =IF(C51="",0,SUM('401k Calculator'!K$17:K65)) -> 0.00 | E51: =IF(C51="",0,SUM('401k Calculator'!N$17:N65)) -> 0.00 | F51: =IF(C51="",0,SUM('401k Calculator'!O$17:Q65)) -> 0.00 | G51: 0
C52: ='401k Calculator'!C66:D66 ->  | D52: =IF(C52="",0,SUM('401k Calculator'!K$17:K66)) -> 0.00 | E52: =IF(C52="",0,SUM('401k Calculator'!N$17:N66)) -> 0.00 | F52: =IF(C52="",0,SUM('401k Calculator'!O$17:Q66)) -> 0.00 | G52: 0
C53: ='401k Calculator'!C67:D67 ->  | D53: =IF(C53="",0,SUM('401k Calculator'!K$17:K67)) -> 0.00 | E53: =IF(C53="",0,SUM('401k Calculator'!N$17:N67)) -> 0.00 | F53: =IF(C53="",0,SUM('401k Calculator'!O$17:Q67)) -> 0.00 | G53: 0
C54: ='401k Calculator'!C68:D68 ->  | D54: =IF(C54="",0,SUM('401k Calculator'!K$17:K68)) -> 0.00 | E54: =IF(C54="",0,SUM('401k Calculator'!N$17:N68)) -> 0.00 | F54: =IF(C54="",0,SUM('401k Calculator'!O$17:Q68)) -> 0.00 | G54: 0
C55: ='401k Calculator'!C69:D69 ->  | D55: =IF(C55="",0,SUM('401k Calculator'!K$17:K69)) -> 0.00 | E55: =IF(C55="",0,SUM('401k Calculator'!N$17:N69)) -> 0.00 | F55: =IF(C55="",0,SUM('401k Calculator'!O$17:Q69)) -> 0.00 | G55: 0
C56: ='401k Calculator'!C70:D70 ->  | D56: =IF(C56="",0,SUM('401k Calculator'!K$17:K70)) -> 0.00 | E56: =IF(C56="",0,SUM('401k Calculator'!N$17:N70)) -> 0.00 | F56: =IF(C56="",0,SUM('401k Calculator'!O$17:Q70)) -> 0.00 | G56: 0
C57: ='401k Calculator'!C71:D71 ->  | D57: =IF(C57="",0,SUM('401k Calculator'!K$17:K71)) -> 0.00 | E57: =IF(C57="",0,SUM('401k Calculator'!N$17:N71)) -> 0.00 | F57: =IF(C57="",0,SUM('401k Calculator'!O$17:Q71)) -> 0.00 | G57: 0
C58: ='401k Calculator'!C72:D72 ->  | D58: =IF(C58="",0,SUM('401k Calculator'!K$17:K72)) -> 0.00 | E58: =IF(C58="",0,SUM('401k Calculator'!N$17:N72)) -> 0.00 | F58: =IF(C58="",0,SUM('401k Calculator'!O$17:Q72)) -> 0.00 | G58: 0
C59: ='401k Calculator'!C73:D73 ->  | D59: =IF(C59="",0,SUM('401k Calculator'!K$17:K73)) -> 0.00 | E59: =IF(C59="",0,SUM('401k Calculator'!N$17:N73)) -> 0.00 | F59: =IF(C59="",0,SUM('401k Calculator'!O$17:Q73)) -> 0.00 | G59: 0
C60: ='401k Calculator'!C74:D74 ->  | D60: =IF(C60="",0,SUM('401k Calculator'!K$17:K74)) -> 0.00 | E60: =IF(C60="",0,SUM('401k Calculator'!N$17:N74)) -> 0.00 | F60: =IF(C60="",0,SUM('401k Calculator'!O$17:Q74)) -> 0.00 | G60: 0
C61: ='401k Calculator'!C75:D75 ->  | D61: =IF(C61="",0,SUM('401k Calculator'!K$17:K75)) -> 0.00 | E61: =IF(C61="",0,SUM('401k Calculator'!N$17:N75)) -> 0.00 | F61: =IF(C61="",0,SUM('401k Calculator'!O$17:Q75)) -> 0.00 | G61: 0
C62: ='401k Calculator'!C76:D76 ->  | D62: =IF(C62="",0,SUM('401k Calculator'!K$17:K76)) -> 0.00 | E62: =IF(C62="",0,SUM('401k Calculator'!N$17:N76)) -> 0.00 | F62: =IF(C62="",0,SUM('401k Calculator'!O$17:Q76)) -> 0.00 | G62: 0

Sheet Readme
D3: Follow the steps to enable your online 401(k) Calculator.
C4: >> | D4: Your 401(k) Calculator is ready to use, following steps are for online use.
C5: 1) | D5: Visit the site below:
D6: http://www.spreadsheetweb.com/getting_started.htm
D7: You will only need the username and password to create your online calculator.
C8: 2) | D8: Visit the site below:
D9: https://www4.spreadsheetweb.com/SpreadsheetWEB//
D10: Login to page with your new account information.
C11: 3) | D11: Click "Add Web Application" to upload this file. Your online dashboard will be created automatically.
D12: You can simply use the calculator from that link or place it on your website.
C13: >> | D13: Your online calculator will look like:
D14: https://www4.spreadsheetweb.com/SpreadSheetWEB/Output.aspx?ApplicationId=eb01d31e-c3fb-4f19-8949-0e676147cfa3
C15: >> | D15: In order to see more online applications created with PSW you can check the link below:
D16: http://www.spreadsheetweb.com/demos.htm
D19: Copyright (c) 2009 Pagos, Inc., http://www.pagos.com/

Sheet PSW_Sheet (hidden)
A1: %3c%3fxml+version%3d%221.0%22+encoding%3d%22utf-16%22%3f%3e%0d%0a%3cPageInputCells+xmlns%3axsi%3d%22http%3a%2f%2fwww.w3.org%2f2001%2fXMLSchema-instance%22+xmlns%3axsd%3d%22http%3a%2f%2fwww.w3.org%2f2001%2fXMLSchema%22%3e%0d%0a++%3cInputCells+InputPrefix%3d%22PSWInput_%22+ListPrefix%3d%22PSWList_%22+CellCount%3d%2211%22%3e%0d%0a++++%3cCells%3e%0d%0a++++++%3cAddress%3e%3d'401k+Calculator'!%24H%245%3c%2fAddress%3e%0d%0a++++++%3cListItemsAddress+%2f%3e%0d%0a++++++%3cNameIndex%3e0%3c%2fNameIndex%3e%0d%0a++++++%3cIsHidingEnabled%3efalse%3c%2fIsHidingEnabled%3e%0d%0a++++++%3cIsDisablingEnabled%3efalse%3c%2fIsDisablingEnabled%3e%0d%0a++++++%3cRequiresValidation%3efalse%3c%2fRequiresValidation%3e%0d%0a++++++%3cIsRequired%3efalse%3c%2fIsRequired%3e%0d%0a++++++%3cType%3eText+Box%3c%2fType%3e%0d%0a++++++%3cDefaultValue%3e40000%3c%2fDefaultValue%3e%0d%0a++++++%3cValueType%3eSystem.Double%3c%2fValueType%3e%0d%0a++++%3c%2fCells%3e%0d%0a++++%3cCells%3e%0d%0a++++++%3cAddress%3e%3d'401k+Calculator'!%24H%246%3c%2fAddress%3e%0d%0a++++++%3cListItemsAddress+%2f%3e%0d%0a++++++%3cNameIndex%3e1%3c%2fNameIndex%3e%0d%0a++++++%3cIsHidingEnabled%3efalse%3c%2fIsHidingEnabled%3e%0d%0a++++++%3cIsDisablingEnabled%3efalse%3c%2fIsDisablingEnabled%3e%0d%0a++++++%3cRequiresValidation%3efalse%3c%2fRequiresValidation%3e%0d%0a++++++%3cIsRequired%3efalse%3c%2fIsRequired%3e%0d%0a++++++%3cType%3eText+Box%3c%2fType%3e%0d%0a++++++%3cDefaultValue%3e3%3c%2fDefaultValue%3e%0d%0a++++++%3cValueType%3eSystem.Double%3c%2fValueType%3e%0d%0a++++%3c%2fCells%3e%0d%0a++++%3cCells%3e%0d%0a++++++%3cAddress%3e%3d'401k+Calculator'!%24H%249%3c%2fAddress%3e%0d%0a++++++%3cListItemsAddress+%2f%3e%0d%0a++++++%3cNameIndex%3e2%3c%2fNameIndex%3e%0d%0a++++++%3cIsHidingEnabled%3efalse%3c%2fIsHidingEnabled%3e%0d%0a++++++%3cIsDisablingEnabled%3efalse%3c%2fIsDisablingEnabled%3e%0d%0a++++++%3cRequiresValidation%3efalse%3c%2fRequiresValidation%3e%0d%0a++++++%3cIsRequired%3efalse%3c%2fIsRequired%3e%0d%0a++++++%3cType%3eText+Box%3c%2fType%3e%0d%0a++++++%3cDefaultValue%3e0%3c%2fDefaultValue%3e%0d%0a++++++%3cValueType%3eSystem.Double%3c%2fValueType%3e%0d%0a++++%3c%2fCells%3e%0d%0a++++%3cCells%3e%0d%0a++++++%3cAddress%3e%3d'401k+Calculator'!%24H%2410%3c%2fAddress%3e%0d%0a++++++%3cListItemsAddress+%2f%3e%0d%0a++++++%3cNameIndex%3e3%3c%2fNameIndex%3e%0d%0a++++++%3cIsHidingEnabled%3efalse%3c%2fIsHidingEnabled%3e%0d%0a++++++%3cIsDisablingEnabled%3efalse%3c%2fIsDisablingEnabled%3e%0d%0a++++++%3cRequiresValidation%3efalse%3c%2fRequiresValidation%3e%0d%0a++++++%3cIsRequired%3efalse%3c%2fIsRequired%3e%0d%0a++++++%3cType%3eText+Box%3c%2fType%3e%0d%0a++++++%3cDefaultValue%3e0%3c%2fDefaultValue%3e%0d%0a++++++%3cValueType%3eSystem.Double%3c%2fValueType%3e%0d%0a++++%3c%2fCells%3e%0d%0a++++%3cCells%3e%0d%0a++++++%3cAddress%3e%3d'401k+Calculator'!%24H%2411%3c%2fAddress%3e%0d%0a++++++%3cListItemsAddress+%2f%3e%0d%0a++++++%3cNameIndex%3e4%3c%2fNameIndex%3e%0d%0a++++++%3cIsHidingEnabled%3efalse%3c%2fIsHidingEnabled%3e%0d%0a++++++%3cIsDisablingEnabled%3efalse%3c%2fIsDisablingEnabled%3e%0d%0a++++++%3cRequiresValidation%3efalse%3c%2fRequiresValidation%3e%0d%0a++++++%3cIsRequired%3efalse%3c%2fIsRequired%3e%0d%0a++++++%3cType%3eText+Box%3c%2fType%3e%0d%0a++++++%3cDefaultValue%3e6%3c%2fDefaultValue%3e%0d%0a++++++%3cValueType%3eSystem.Double%3c%2fValueType%3e%0d%0a++++%3c%2fCells%3e%0d%0a++++%3cCells%3e%0d%0a++++++%3cAddress%3e%3d'401k+Calculator'!%24R%245%3c%2fAddress%3e%0d%0a++++++%3cListItemsAddress+%2f%3e%0d%0a++++++%3cNameIndex%3e5%3c%2fNameIndex%3e%0d%0a++++++%3cIsHidingEnabled%3efalse%3c%2fIsHidingEnabled%3e%0d%0a++++++%3cIsDisablingEnabled%3efalse%3c%2fIsDisablingEnabled%3e%0d%0a++++++%3cRequiresValidation%3efalse%3c%2fRequiresValidation%3e%0d%0a++++++%3cIsRequired%3efalse%3c%2fIsRequired%3e%0d%0a++++++%3cType%3eText+Box%3c%2fType%3e%0d%0a++++++%3cDefaultValue%3e50%3c%2fDefaultValue%3e%0d%0a++++++%3cValueType%3eSystem.Double%3c%2fValueType%3e%0d%0a++++%3c%2fCells%3e%0d%0a++++%3cCells%3e%0d%0a++++++%3cAddress%3e%3d'401k+Calculator'!%24O%246%3c%2fAddress%3e%0d%0a++++++%3cListItemsAddress+%2f%3e%0d%0a++++++%3cNameIndex%3e6%3c%2fNameIndex%3e%0d%0a++++++%3cIsHidingEnabled%3efalse%3c%2fIsHidingEnabled%3e%0d%0a++++++%3cIsDisablingEnabled%3efalse%3c%2fIsDisablingEnabled%3e%0d%0a++++++%3cRequiresValidation%3efalse%3c%2fRequiresValidation%3e%0d%0a++++++%3cIsRequired%3efalse%3c%2fIsRequired%3e%0d%0a++++++%3cType%3eText+Box%3c%2fType%3e%0d%0a++++++%3cDefaultValue%3e6%3c%2fDefaultValue%3e%0d%0a++++++%3cValueType%3eSystem.Double%3c%2fValueType%3e%0d%0a++++%3c%2fCells%3e%0d%0a++++%3cCells%3e%0d%0a++++++%3cAddress%3e%3d'401k+Calculator'!%24R%248%3c%2fAddress%3e%0d%0a++++++%3cListItemsAddress+%2f%3e%0d%0a++++++%3cNameIndex%3e7%3c%2fNameIndex%3e%0d%0a++++++%3cIsHidingEnabled%3efalse%3c%2fIsHidingEnabled%3e%0d%0a++++++%3cIsDisablingEnabled%3efalse%3c%2fIsDisablingEnabled%3e%0d%0a++++++%3cRequiresValidation%3efalse%3c%2fRequiresValidation%3e%0d%0a++++++%3cIsRequired%3efalse%3c%2fIsRequired%3e%0d%0a++++++%3cType%3eText+Box%3c%2fType%3e%0d%0a++++++%3cDefaultValue%3e25%3c%2fDefaultValue%3e%0d%0a++++++%3cValueType%3eSystem.Double%3c%2fValueType%3e%0d%0a++++%3c%2fCells%3e%0d%0a++++%3cCells%3e%0d%0a++++++%3cAddress%3e%3d'401k+Calculator'!%24R%249%3c%2fAddress%3e%0d%0a++++++%3cListItemsAddress+%2f%3e%0d%0a++++++%3cNameIndex%3e8%3c%2fNameIndex%3e%0d%0a++++++%3cIsHidingEnabled%3efalse%3c%2fIsHidingEnabled%3e%0d%0a++++++%3cIsDisablingEnabled%3efalse%3c%2fIsDisablingEnabled%3e%0d%0a++++++%3cRequiresValidation%3efalse%3c%2fRequiresValidation%3e%0d%0a++++++%3cIsRequired%3efalse%3c%2fIsRequired%3e%0d%0a++++++%3cType%3eText+Box%3c%2fType%3e%0d%0a++++++%3cDefaultValue%3e46%3c%2fDefaultValue%3e%0d%0a++++++%3cValueType%3eSystem.Double%3c%2fValueType%3e%0d%0a++++%3c%2fCells%3e%0d%0a++++%3cCells%3e%0d%0a++++++%3cAddress%3e%3d'401k+Calculator'!%24R%2410%3c%2fAddress%3e%0d%0a++++++%3cListItemsAddress+%2f%3e%0d%0a++++++%3cNameIndex%3e9%3c%2fNameIndex%3e%0d%0a++++++%3cIsHidingEnabled%3efalse%3c%2fIsHidingEnabled%3e%0d%0a++++++%3cIsDisablingEnabled%3efalse%3c%2fIsDisablingEnabled%3e%0d%0a++++++%3cRequiresValidation%3efalse%3c%2fRequiresValidation%3e%0d%0a++++++%3cIsRequired%3efalse%3c%2fIsRequired%3e%0d%0a++++++%3cType%3eText+Box%3c%2fType%3e%0d%0a++++++%3cDefaultValue%3e7%3c%2fDefaultValue%3e%0d%0a++++++%3cValueType%3eSystem.Double%3c%2fValueType%3e%0d%0a++++%3c%2fCells%3e%0d%0a++++%3cCells%3e%0d%0a++++++%3cAddress%3e%3d'401k+Calculator'!%24R%2411%3c%2fAddress%3e%0d%0a++++++%3cListItemsAddress+%2f%3e%0d%0a++++++%3cNameIndex%3e10%3c%2fNameIndex%3e%0d%0a++++++%3cIsHidingEnabled%3efalse%3c%2fIsHidingEnabled%3e%0d%0a++++++%3cIsDisablingEnabled%3efalse%3c%2fIsDisablingEnabled%3e%0d%0a++++++%3cRequiresValidation%3efalse%3c%2fRequiresValidation%3e%0d%0a++++++%3cIsRequired%3efalse%3c%2fIsRequired%3e%0d%0a++++++%3cType%3eText+Box%3c%2fType%3e%0d%0a++++++%3cDefaultValue%3e1%3c%2fDefaultValue%3e%0d%0a++++++%3cValueType%3eSystem.Double%3c%2fValueType%3e%0d%0a++++%3c%2fCells%3e%0d%0a++%3c%2fInputCells%3e%0d%0a%3c%2fPageInputCells%3e
U2: 4%22+Merge%3d%22True%22+RowSpan%3d%22%22+ColSpan%3d%222%22+Format%3d%22General%22+Width%3d%2239%22+Text%3d%22%22+Height%3d%2215.75%22+Align%3d%22Center%22+CellHasFormula%3d%22False%22+FontName%3d%22Calibri%22+WrapText%3d%22False%22+FontSize%3d%2210%22+X%3d%223%22+Y%3d%2278%22+%2f%3e%0d%0a++++++%3cTD+Style%3d%22Class218%22+Merge%3d%22False%22+RowSpan%3d%22%22+ColSpan%3d%22%22+Format%3d%22General%22+Width%3d%2224.75%22+Text%3d%22%22+Height%3d%2215.75%22+Align%3d%22Left%22+CellHasFormula%3d%22False%22+FontName%3d%22Calibri%22+WrapText%3d%22False%22+FontSize%3d%2210%22+X%3d%225%22+Y%3d%2278%22+%2f%3e%0d%0a++++++%3cTD+Style%3d%22Class218%22+Merge%3d%22False%22+RowSpan%3d%22%22+ColSpan%3d%22%22+Format%3d%22General%22+Width%3d%2214.25%22+Text%3d%22%22+Height%3d%2215.75%22+Align%3d%22Left%22+CellHasFormula%3d%22False%22+FontName%3d%22Calibri%22+WrapText%3d%22False%22+FontSize%3d%2210%22+X%3d%226%22+Y%3d%2278%22+%2f%3e%0d%0a++++++%3cTD+Style%3d%22Class218%22+Merge%3d%22False%22+RowSpan%3d%22%22+ColSpan%3d%22%22+Format%3d%22General%22+Width%3d%2228.5%22+Text%3d%22%22+Height%3d%2215.75%22+Align%3d%22Left%22+CellHasFormula%3d%22False%22+FontName%3d%22Calibri%22+WrapText%3d%22False%22+FontSize%3d%2210%22+X%3d%227%22+Y%3d%2278%22+%2f%3e%0d%0a++++++%3cTD+Style%3d%22Class218%22+Merge%3d%22False%22+RowSpan%3d%22%22+ColSpan%3d%22%22+Format%3d%22General%22+Width%3d%2224.75%22+Text%3d%22%22+Height%3d%2215.75%22+Align%3d%22Left%22+CellHasFormula%3d%22False%22+FontName%3d%22Calibri%22+WrapText%3d%22False%22+FontSize%3d%2210%22+X%3d%228%22+Y%3d%2278%22+%2f%3e%0d%0a++++++%3cTD+Style%3d%22Class218%22+Merge%3d%22False%22+RowSpan%3d%22%22+ColSpan%3d%22%22+Format%3d%22General%22+Width%3d%2214.25%22+Text%3d%22%22+Height%3d%2215.75%22+Align%3d%22Left%22+CellHasFormula%3d%22False%22+FontName%3d%22Calibri%22+WrapText%3d%22False%22+FontSize%3d%2210%22+X%3d%229%22+Y%3d%2278%22+%2f%3e%0d%0a++++++%3cTD+Style%3d%22Class218%22+Merge%3d%22False%22+RowSpan%3d%22%22+ColSpan%3d%22%22+Format%3d%22General%22+Width%3d%2224.75%22+Text%3d%22%22+Height%3d%2215.75%22+Align%3d%22Left%22+CellHasFormula%3d%22False%22+FontName%3d%22Calibri%22+WrapText%3d%22False%22+FontSize%3d%2210%22+X%3d%2210%22+Y%3d%2278%22+%2f%3e%0d%0a++++++%3cTD+Style%3d%22Class218%22+Merge%3d%22False%22+RowSpan%3d%22%22+ColSpan%3d%22%22+Format%3d%22General%22+Width%3d%2224.75%22+Text%3d%22%22+Height%3d%2215.75%22+Align%3d%22Left%22+CellHasFormula%3d%22False%22+FontName%3d%22Calibri%22+WrapText%3d%22False%22+FontSize%3d%2210%22+X%3d%2211%22+Y%3d%2278%22+%2f%3e%0d%0a++++++%3cTD+Style%3d%22Class218%22+Merge%3d%22False%22+RowSpan%3d%22%22+ColSpan%3d%22%22+Format%3d%22General%22+Width%3d%2214.25%22+Text%3d%22%22+Height%3d%2215.75%22+Align%3d%22Left%22+CellHasFormula%3d%22False%22+FontName%3d%22Calibri%22+WrapText%3d%22False%22+FontSize%3d%2210%22+X%3d%2212%22+Y%3d%2278%22+%2f%3e%0d%0a++++++%3cTD+Style%3d%22Class218%22+Merge%3d%22False%22+RowSpan%3d%22%22+ColSpan%3d%22%22+Format%3d%22General%22+Width%3d%2224.75%22+Text%3d%22%22+Height%3d%2215.75%22+Align%3d%22Left%22+CellHasFormula%3d%22False%22+FontName%3d%22Calibri%22+WrapText%3d%22False%22+FontSize%3d%2210%22+X%3d%2213%22+Y%3d%2278%22+%2f%3e%0d%0a++++++%3cTD+Style%3d%22Class218%22+Merge%3d%22False%22+RowSpan%3d%22%22+ColSpan%3d%22%22+Format%3d%22General%22+Width%3d%2224.75%22+Text%3d%22%22+Height%3d%2215.75%22+Align%3d%22Left%22+CellHasFormula%3d%22False%22+FontName%3d%22Calibri%22+WrapText%3d%22False%22+FontSize%3d%2210%22+X%3d%2214%22+Y%3d%2278%22+%2f%3e%0d%0a++++++%3cTD+Style%3d%22Class218%22+Merge%3d%22False%22+RowSpan%3d%22%22+ColSpan%3d%22%22+Format%3d%22General%22+Width%3d%2214.25%22+Text%3d%22%22+Height%3d%2215.75%22+Align%3d%22Left%22+CellHasFormula%3d%22False%22+FontName%3d%22Calibri%22+WrapText%3d%22False%22+FontSize%3d%2210%22+X%3d%2215%22+Y%3d%2278%22+%2f%3e%0d%0a++++++%3cTD+Style%3d%22Class218%22+Merge%3d%22False%22+RowSpan%3d%22%22+ColSpan%3d%22%22+Format%3d%22General%22+Width%3d%2224.75%22+Text%3d%22%22+Height%3d%2215.75%22+Align%3d%22Left%22+CellHasFormula%3d%22False%22+FontName%3d%22Calibri%22+WrapText%3d%22False%22+FontSize%3d%2210%22+X%3d%2216%22+Y%3d%2278%22+%2f%3e%0d%0a++++++%3cTD+Style%3d%22Class218%22+Merge%3d%22False%22+RowSpan%3d%22%22+ColSpan%3d%22%22+Format%3d%22General%22+Width%3d%2224.75%22+Text%3d%22%22+Height%3d%2215.75%22+Align%3d%22Left%22+CellHasFormula%3d%22False%22+FontName%3d%22Calibri%22+WrapText%3d%22False%22+FontSize%3d%2210%22+X%3d%2217%22+Y%3d%2278%22+%2f%3e%0d%0a++++++%3cTD+Style%3d%22Class218%22+Merge%3d%22False%22+RowSpan%3d%22%22+ColSpan%3d%22%22+Format%3d%22General%22+Width%3d%2214.25%22+Text%3d%22%22+Height%3d%2215.75%22+Align%3d%22Left%22+CellHasFormula%3d%22False%22+FontName%3d%22Calibri%22+WrapText%3d%22False%22+FontSize%3d%2210%22+X%3d%2218%22+Y%3d%2278%22+%2f%3e%0d%0a++++++%3cTD+Style%3d%22Class218%22+Merge%3d%22False%22+RowSpan%3d%22%22+ColSpan%3d%22%22+Format%3d%22General%22+Width%3d%2224.75%22+Text%3d%22%22+Height%3d%2215.75%22+Align%3d%22Left%22+CellHasFormula%3d%22False%22+FontName%3d%22Calibri%22+WrapText%3d%22False%22+FontSize%3d%2210%22+X%3d%2219%22+Y%3d%2278%22+%2f%3e%0d%0a++++++%3cTD+Style%3d%22Class218%22+Merge%3d%22False%22+RowSpan%3d%22%22+ColSpan%3d%22%22+Format%3d%22General%22+Width%3d%2224.75%22+Text%3d%22%22+Height%3d%2215.75%22+Align%3d%22Left%22+CellHasFormula%3d%22False%22+FontName%3d%22Calibri%22+WrapText%3d%22False%22+FontSize%3d%2210%22+X%3d%2220%22+Y%3d%2278%22+%2f%3e%0d%0a++++++%3cTD+Style%3d%22Class218%22+Merge%3d%22False%22+RowSpan%3d%22%22+ColSpan%3d%22%22+Format%3d%22General%22+Width%3d%2214.25%22+Text%3d%22%22+Height%3d%2215.75%22+Align%3d%22Left%22+CellHasFormula%3d%22False%22+FontName%3d%22Calibri%22+WrapText%3d%22False%22+FontSize%3d%2210%22+X%3d%2221%22+Y%3d%2278%22+%2f%3e%0d%0a++++++%3cTD+Style%3d%22Class218%22+Merge%3d%22False%22+RowSpan%3d%22%22+ColSpan%3d%22%22+Format%3d%22General%22+Width%3d%2224.75%22+Text%3d%22%22+Height%3d%2215.75%22+Align%3d%22Left%22+CellHasFormula%3d%22False%22+FontName%3d%22Calibri%22+WrapText%3d%22False%22+FontSize%3d%2210%22+X%3d%2222%22+Y%3d%2278%22+%2f%3e%0d%0a++++++%3cTD+Style%3d%22Class218%22+Merge%3d%22False%22+RowSpan%3d%22%22+ColSpan%3d%22%22+Format%3d%22General%22+Width%3d%2214.25%22+Text%3d%22%22+Height%3d%2215.75%22+Align%3d%22Left%22+CellHasFormula%3d%22False%22+FontName%3d%22Calibri%22+WrapText%3d%22False%22+FontSize%3d%2210%22+X%3d%2223%22+Y%3d%2278%22+%2f%3e%0d%0a++++++%3cTD+Style%3d%22Class114%22+Merge%3d%22False%22+RowSpan%3d%22%22+ColSpan%3d%22%22+Format%3d%22General%22+Width%3d%2224.75%22+Text%3d%22%22+Height%3d%2215.75%22+Align%3d%22Left%22+CellHasFormula%3d%22False%22+FontName%3d%22Calibri%22+WrapText%3d%22False%22+FontSize%3d%2210%22+X%3d%2224%22+Y%3d%2278%22+%2f%3e%0d%0a++++++%3cTD+Style%3d%22Class114%22+Merge%3d%22False%22+RowSpan%3d%22%22+ColSpan%3d%22%22+Format%3d%22General%22+Width%3d%2214.25%22+Text%3d%22%22+Height%3d%2215.75%22+Align%3d%22Left%22+CellHasFormula%3d%22False%22+FontName%3d%22Calibri%22+WrapText%3d%22False%22+FontSize%3d%2210%22+X%3d%2225%22+Y%3d%2278%22+%2f%3e%0d%0a++++++%3cTD+Style%3d%22Class114%22+Merge%3d%22False%22+RowSpan%3d%22%22+ColSpan%3d%22%22+Format%3d%22General%22+Width%3d%2224.75%22+Text%3d%22%22+Height%3d%2215.75%22+Align%3d%22Left%22+CellHasFormula%3d%22False%22+FontName%3d%22Calibri%22+WrapText%3d%22False%22+FontSize%3d%2210%22+X%3d%2226%22+Y%3d%2278%22+%2f%3e%0d%0a++++++%3cTD+Style%3d%22Class114%22+Merge%3d%22False%22+RowSpan%3d%22%22+ColSpan%3d%22%22+Format%3d%22General%22+Width%3d%2231.5%22+Text%3d%22%22+Height%3d%2215.75%22+Align%3d%22Left%22+CellHasFormula%3d%22False%22+FontName%3d%22Calibri%22+WrapText%3d%22False%22+FontSize%3d%2210%22+X%3d%2227%22+Y%3d%2278%22+%2f%3e%0d%0a++++++%3cTD+Style%3d%22Class114%22+Merge%3d%22False%22+RowSpan%3d%22%22+ColSpan%3d%22%22+Format%3d%22General%22+Width%3d%2224.75%22+Text%3d%22%22+Height%3d%2215.75%22+Align%3d%22Left%22+CellHasFormula%3d%22False%22+FontName%3d%22Calibri%22+WrapText%3d%22False%22+FontSize%3d%2210%22+X%3d%2228%22+Y%3d%2278%22+%2f%3e%0d%0a++++++%3cTD+Style%3d%22Class114%22+Merge%3d%22False%22+RowSpan%3d%22%22+ColSpan%3d%22%22+Format%3d%22General%22+Width%3d%2224.75%22+Text%3d%22%22+Height%3d%2215.75%22+Align%3d%22Left%22+CellHasFormula%3d%22False%22+FontName%3d%22Calibri%22+WrapText%3d%22False%22+FontSize%3d%2210%22+X%3d%2229%22+Y%3d%2278%22+%2f%3e%0d%0a++++++%3cTD+Style%3d%22Class114%22+Merge%3d%22False%22+RowSpan%3d%22%22+ColSpan%3d%22%22+Format%3d%22General%22+Width%3d%2224.75%22+Text%3d%22%22+Height%3d%2215.75%22+Align%3d%22Left%22+CellHasFormula%3d%22False%22+FontName%3d%22Calibri%22+WrapText%3d%22False%22+FontSize%3d%2210%22+X%3d%2230%22+Y%3d%2278%22+%2f%3e%0d%0a++++++%3cTD+Style%3d%22Class114%22+Merge%3d%22False%22+RowSpan%3d%22%22+ColSpan%3d%22%22+Format%3d%22General%22+Width%3d%2224.75%22+Text%3d%22%22+Height%3d%2215.75%22+Align%3d%22Left%22+CellHasFormula%3d%22False%22+FontName%3d%22Calibri%22+WrapText%3d%22False%22+FontSize%3d%2210%22+X%3d%2231%22+Y%3d%2278%22+%2f%3e%0d%0a++++++%3cTD+Style%3d%22Class114%22+Merge%3d%22False%22+RowSpan%3d%22%22+ColSpan%3d%22%22+Format%3d%22General%22+Width%3d%2224.75%22+Text%3d%22%22+Height%3d%2215.75%22+Align%3d%22Left%22+CellHasFormula%3d%22False%22+FontName%3d%22Calibri%22+WrapText%3d%22False%22+FontSize%3d%2210%22+X%3d%2232%22+Y%3d%2278%22+%2f%3e%0d%0a++++++%3cTD+Style%3d%22Class114%22+Merge%3d%22False%22+RowSpan%3d%22%22+ColSpan%3d%22%22+Format%3d%22General%22+Width%3d%2224.75%22+Text%3d%22%22+Height%3d%2215.75%22+Align%3d%22Left%22+CellHasFormula%3d%22False%22+FontName%3d%22Calibri%22+WrapText%3d%22False%22+FontSize%3d%2210%22+X%3d%2233%22+Y%3d%2278%22+%2f%3e%0d%0a++++++%3cTD+Style%3d%22Class114%22+Merge%3d%22False%22+RowSpan%3d%22%22+ColSpan%3d%22%22+Format%3d%22General%22+Width%3d%2224.75%22+Text%3d%22%22+Height%3d%2215.75%22+Align%3d%22Left%22+CellHasFormula%3d%22False%22+FontName%3d%22Calibri%22+WrapText%3d%22False%22+FontSize%3d%2210%22+X%3d%2234%22+Y%3d%2278%22+%2f%3e%0d%0a++++++%3cTD+Style%3d%22Class114%22+Merge%3d%22False%22+RowSpan%3d%22%22+ColSpan%3d%22%22+Format%3d%22General%22+Width%3d%2224.75%22+Text%3d%22%22+Height%3d%2215.75%22+Align%3d%22Left%22+CellHasFormula%3d%22False%22+FontName%3d%22Calibri%22+WrapText%3d%22False%22+FontSize%3d%2210%22+X%3d%2235%22+Y%3d%2278%22+%2f%3e%0d%0a++++++%3cTD+Style%3d%22Class114%22+Merge%3d%22False%22+RowSpan%3d%22%22+ColSpan%3d%22%22+Format%3d%22General%22+Width%3d%2224.75%22+Text%3d%22%22+Height%3d%2215.75%22+Align%3d%22Left%22+CellHasFormula%3d%22False%22+FontName%3d%22Calibri%22+WrapText%3d%22False%22+FontSize%3d%2210%22+X%3d%2236%22+Y%3d%2278%22+%2f%3e%0d%0a++++++%3cTD+Style%3d%22Class114%22+Merge%3d%22False%22+RowSpan%3d%22%22+ColSpan%3d%22%22+Format%3d%22General%22+Width%3d%2224.75%22+Text%3d%22%22+Height%3d%2215.75%22+Align%3d%22Left%22+CellHasFormula%3d%22False%22+FontName%3d%22Calibri%22+WrapText%3d%22False%22+FontSize%3d%2210%22+X%3d%2237%22+Y%3d%2278%22+%2f%3e%0d%0a++++++%3cTD+Style%3d%22Class114%22+Merge%3d%22False%22+RowSpan%3d%22%22+ColSpan%3d%22%22+Format%3d%22General%22+Width%3d%2214.25%22+Text%3d%22%22+Height%3d%2215.75%22+Align%3d%22Left%22+CellHasFormula%3d%22False%22+FontName%3d%22Calibri%22+WrapText%3d%22False%22+FontSize%3d%2210%22+X%3d%2238%22+Y%3d%2278%22+%2f%3e%0d%0a++++++%3cTD+Style%3d%22Class113%22+Merge%3d%22False%22+RowSpan%3d%22%22+ColSpan%3d%22%22+Format%3d%22General%22+Width%3d%2224.75%22+Text%3d%22%22+Height%3d%2215.75%22+Align%3d%22Left%22+CellHasFormula%3d%22False%22+FontName%3d%22Calibri%22+WrapText%3d%22False%22+FontSize%3d%2211%22+X%3d%2239%22+Y%3d%2278%22+%2f%3e%0d%0a++++%3c%2fTR%3e%0d%0a++%3c%2fTable%3e%0d%0a%3c%2fTables%3e
A3: %3c%3fxml+version%3d%221.0%22+encoding%3d%22utf-16%22%3f%3e%0d%0a%3cPageLayouts+xmlns%3axsi%3d%22http%3a%2f%2fwww.w3.org%2f2001%2fXMLSchema-instance%22+xmlns%3axsd%3d%22http%3a%2f%2fwww.w3.org%2f2001%2fXMLSchema%22+IsTabsVisible%3d%22true%22+InitialPageIndex%3d%220%22%3e%0d%0a++%3cPageLayout+Index%3d%220%22+IsPageHidingEnabled%3d%22false%22+Order%3d%220%22+FileName%3d%221.+401k+Calculator%22+IsAjaxEnabled%3d%22false%22+Recipient%3d%22Enter+e-mail+address+here.%22+Location%3d%22Bottom%22+Alignment%3d%22Center%22+AutoResponseEmail%3d%22False%22+NotificationEmail%3d%22False%22+PageForwarding%3d%22False%22+PageForwardingCustomPage%3d%22False%22+PageForwardingIsExternalURL%3d%22False%22+PageForwardingExternalURL%3d%22None%22%3e%0d%0a++++%3cControls%3e%0d%0a++++++%3cPageControl+Enabled%3d%22true%22+Type%3d%22Calculate%22+Order%3d%220%22+CellLink%3d%22%3d'401k+Calculator'!%24V%2412%22+Name%3d%22Calculate%22+%2f%3e%0d%0a++++++%3cPageControl+Enabled%3d%22false%22+Type%3d%22Reset%22+Order%3d%221%22+CellLink%3d%22DEFAULT%22+Name%3d%22Reset%22+%2f%3e%0d%0a++++++%3cPageControl+Enabled%3d%22false%22+Type%3d%22Send+Results%22+Order%3d%222%22+CellLink%3d%22DEFAULT%22+Name%3d%22Submit%22+%2f%3e%0d%0a++++++%3cPageControl+Enabled%3d%22false%22+Type%3d%22Save%22+Order%3d%223%22+CellLink%3d%22DEFAULT%22+Name%3d%22Save%22+%2f%3e%0d%0a++++++%3cPageControl+Enabled%3d%22false%22+Type%3d%22Back%22+Order%3d%225%22+CellLink%3d%22DEFAULT%22+Name%3d%22Back%22+%2f%3e%0d%0a++++++%3cPageControl+Enabled%3d%22false%22+Type%3d%22Next%22+Order%3d%224%22+CellLink%3d%22DEFAULT%22+Name%3d%22Next%22+%2f%3e%0d%0a++++%3c%2fControls%3e%0d%0a++%3c%2fPageLayout%3e%0d%0a++%3cApplicationName%3e401k+Calculator+(Online)%3c%2fApplicationName%3e%0d%0a%3c%2fPageLayouts%3e
B4: .Class215{font-family: Calibri; font-size:10pt; color:Black;border-left-style: Solid ;border-bottom-style: Solid ;border-top-width: 0.5pt ;border-left-width: 1.5pt ;border-right-width: 0.5pt ;border-bottom-width: 1.5pt ;border-top-color: Black ;border-left-color: #666699 ;border-right-color: Black ;border-bottom-color: #666699 ;background-color:#F6F5EE; text-align:left;vertical-align:bottom;} .Class216{font-family: Calibri; font-size:10pt; color:Black;border-bottom-style: Solid ;border-top-width: 0.5pt ;border-left-width: 0.5pt ;border-right-width: 0.5pt ;border-bottom-width: 1.5pt ;border-top-color: Black ;border-left-color: Black ;border-right-color: Black ;border-bottom-color: #666699 ;background-color:#F6F5EE; text-align:left;vertical-align:bottom;} .Class217{font-family: Calibri; font-size:10pt; color:Black;border-right-style: Solid ;border-bottom-style: Solid ;border-top-width: 0.5pt ;border-left-width: 0.5pt ;border-right-width: 1.5pt ;border-bottom-width: 1.5pt ;border-top-color: Black ;border-left-color: Black ;border-right-color: #666699 ;border-bottom-color: #666699 ;background-color:#F6F5EE; text-align:left;vertical-align:bottom;} .Class218{font-family: Calibri; font-size:10pt; color:Black;border-top-style: Solid ;border-top-width: 1.5pt ;border-left-width: 0.5pt ;border-right-width: 0.5pt ;border-bottom-width: 0.5pt ;border-top-color: #666699 ;border-left-color: Black ;border-right-color: Black ;border-bottom-color: Black ;background-color:White; text-align:left;vertical-align:bottom;} .Class219{font-family: Calibri; font-size:11pt; color:Black;border-left-style: Solid ;border-bottom-style: Solid ;border-top-width: 0.5pt ;border-left-width: 1.5pt ;border-right-width: 0.5pt ;border-bottom-width: 1.5pt ;border-top-color: Black ;border-left-color: #666699 ;border-right-color: Black ;border-bottom-color: #666699 ;background-color:#EEECDE; text-align:left;vertical-align:bottom;} .Class220{font-family: Calibri; font-size:10pt; color:Black;border-bottom-style: Solid ;border-top-width: 0.5pt ;border-left-width: 0.5pt ;border-right-width: 0.5pt ;border-bottom-width: 1.5pt ;border-top-color: Black ;border-left-color: Black ;border-right-color: Black ;border-bottom-color: #666699 ;background-color:#EEECDE; text-align:center;vertical-align:bottom;} .Class221{font-family: Calibri; font-size:10pt; color:Black;border-bottom-style: Solid ;border-top-width: 0.5pt ;border-left-width: 0.5pt ;border-right-width: 0.5pt ;border-bottom-width: 1.5pt ;border-top-color: Black ;border-left-color: Black ;border-right-color: Black ;border-bottom-color: #666699 ;background-color:#EEECDE; text-align:left;vertical-align:bottom;} .Class222{font-family: Calibri; font-size:10pt; color:Black;border-right-style: Solid ;border-bottom-style: Solid ;border-top-width: 0.5pt ;border-left-width: 0.5pt ;border-right-width: 1.5pt ;border-bottom-width: 1.5pt ;border-top-color: Black ;border-left-color: Black ;border-right-color: #666699 ;border-bottom-color: #666699 ;background-color:#EEECDE; text-align:left;vertical-align:bottom;} .Class223{font-family: Calibri; font-size:11pt; color:Black;border-top-style: Solid ;border-top-width: 1.5pt ;border-left-width: 0.5pt ;border-right-width: 0.5pt ;border-bottom-width: 0.5pt ;border-top-color: #666699 ;border-left-color: Black ;border-right-color: Black ;border-bottom-color: Black ;background-color:White; text-align:left;vertical-align:bottom;} .Class224{font-family: Calibri; font-size:10pt; color:Black;border-top-style: Solid ;border-top-width: 1.5pt ;border-left-width: 0.5pt ;border-right-width: 0.5pt ;border-bottom-width: 0.5pt ;border-top-color: #666699 ;border-left-color: Black ;border-right-color: Black ;border-bottom-color: Black ;background-color:White; text-align:center;vertical-align:bottom;}
A5: tr-TR
A6: 2.0.0.0
A8: UEsFBgAAAAAAAAAAAAAAAAAAAAAAAA%3d%3d
A11: %3c%3fxml+version%3d%221.0%22+encoding%3d%22utf-16%22%3f%3e%0d%0a%3cSavingCells+xmlns%3axsi%3d%22http%3a%2f%2fwww.w3.org%2f2001%2fXMLSchema-instance%22+xmlns%3axsd%3d%22http%3a%2f%2fwww.w3.org%2f2001%2fXMLSchema%22+CellCount%3d%220%22+SavingCellPrefix%3d%22PSWSavingCell_%22+%2f%3e
